bitfinex-derivatives/quotes_SOLF0:USTF0_20250816
["timestamp","ask_amount","ask_price","bid_price","bid_amount"]
[1755326021373,3.0,186.86,186.81,3.06]
[1755326021578,3.0,186.84,186.81,3.06]
[1755326022175,3.0,186.84,186.8,5.3487]
[1755326022371,3.0,186.84,186.82,3.06]
[1755326022982,3.0,186.83,186.81,5.3486]
[1755326023279,3.0,186.88,186.82,5.3483]
[1755326023581,3.0,186.86,186.84,3.06]
[1755326023879,7.31890705,186.85,186.84,3.06]
[1755326029379,2.89,186.84,186.83,0.03869501]
[1755326029575,7.20890705,186.84,186.83,2.94869501]
[1755326032691,4.31890705,186.84,186.83,8.29679501]
[1755326032888,0.03805415,186.86,186.83,2.94869501]
[1755326033192,0.03805415,186.86,186.85,2.91]
[1755326034280,0.03805415,186.86,186.85,8.2576]
[1755326035294,2.89,186.9,186.87,5.3467]
[1755326035595,7.2182149,186.89,186.87,2.91]
[1755326035791,2.89,186.89,186.87,2.91]
[1755326036191,2.89,186.89,186.88,5.3466]
[1755326036495,7.21699819,186.89,186.88,8.2566]
[1755326037593,4.47594481,186.94,186.88,2.91]
[1755326037798,2.89,186.92,186.88,2.91]
[1755326037989,4.32645289,186.91,186.88,2.91]
[1755326038190,2.89,186.92,186.88,2.91]
[1755326038491,4.32543468,186.91,186.88,2.91]
[1755326038691,4.47594481,186.95,186.88,2.91]
[1755326038895,2.89,186.93,186.88,2.91]
[1755326039097,2.89,186.91,186.9,8.2559]
[1755326039298,7.21543468,186.91,186.9,8.2559]
[1755326041095,4.32543468,186.91,186.9,8.2559]
[1755326041292,7.21543468,186.91,186.9,8.2559]
[1755326044997,2.89,186.91,186.9,8.2559]
[1755326054494,4.47594481,186.97,186.87,0.03867574]
[1755326054695,2.89,186.93,186.87,0.03867574]
[1755326054904,2.89,186.91,186.87,0.03867574]
[1755326055202,2.89,186.89,186.87,2.94867574]
[1755326055403,2.89,186.89,186.88,2.91]
[1755326055601,7.20901151,186.89,186.88,2.91]
[1755326057805,7.20901151,186.89,186.87,5.38567574]
[1755326058005,2.89,186.89,186.87,8.29567574]
[1755326059410,2.89,186.89,186.88,8.2267]
[1755326059611,7.20901613,186.89,186.88,8.2267]
[1755326061214,7.20901613,186.89,186.88,5.3467]
[1755326064020,7.20901613,186.89,186.88,8.2267]
[1755326064316,3.01,186.93,186.88,2.88]
[1755326064518,3.01,186.91,186.88,2.88]
[1755326064718,3.01,186.9,186.89,5.3464]
[1755326065020,3.01,186.9,186.89,8.2264]
[1755326065921,3.01,186.9,186.89,2.88]
[1755326066221,7.32970606,186.9,186.89,2.88]
[1755326067323,7.32970606,186.9,186.89,8.2264]
[1755326067824,3.01,186.9,186.89,8.2264]
[1755326069223,7.3317627,186.9,186.89,8.2264]
[1755326072427,7.33436486,186.9,186.89,8.2264]
[1755326072627,4.32436486,186.9,186.89,10.07180338]
[1755326072833,7.33436486,186.9,186.89,10.07180338]
[1755326081332,7.33436486,186.9,186.89,1.84540338]
[1755326081533,4.32436486,186.9,186.89,1.84540338]
[1755326081932,4.32436486,186.9,186.89,10.07180338]
[1755326082134,7.33436486,186.9,186.89,10.07180338]
[1755326082935,7.33436486,186.9,186.89,1.84540338]
[1755326083433,3.01,186.89,186.87,1.88407912]
[1755326083632,7.33436486,186.88,186.87,1.88407912]
[1755326083839,11.82834771,186.88,186.87,0.03867574]
[1755326084233,7.33436486,186.88,186.87,0.03867574]
[1755326086135,11.82834771,186.88,186.87,0.03867574]
[1755326086539,7.33436486,186.88,186.87,0.03867574]
[1755326087443,3.01,186.87,186.83,1.84540338]
[1755326087640,3.01,186.85,186.81,4.72540338]
[1755326087845,3.01,186.83,186.81,4.72540338]
[1755326088033,3.01,186.83,186.82,2.88]
[1755326088237,7.33975149,186.83,186.82,2.88]
[1755326088736,4.32975149,186.83,186.82,2.88]
[1755326088940,7.15975149,186.83,186.82,8.2284]
[1755326091242,7.15975149,186.83,186.82,5.3484]
[1755326091745,7.15975149,186.83,186.81,10.03400338]
[1755326091942,2.83,186.83,186.81,10.03400338]
[1755326092646,2.83,186.83,186.81,7.19400338]
[1755326093444,2.83,186.86,186.81,7.19400338]
[1755326093644,2.83,186.84,186.81,7.19400338]
[1755326093845,2.83,186.82,186.81,7.19400338]
[1755326094747,2.83,186.82,186.81,10.03400338]
[1755326098050,2.83,186.82,186.81,4.68540338]
[1755326098250,2.83,186.82,186.81,1.84540338]
[1755326100353,2.83,186.82,186.81,4.68540338]
[1755326100552,2.83,186.82,186.81,2.84]
[1755326100751,7.19265597,186.82,186.78,1.84540338]
[1755326100950,2.83,186.82,186.78,4.68540338]
[1755326101951,2.83,186.82,186.79,2.84]
[1755326102752,2.83,186.82,186.78,4.68540338]
[1755326102951,2.83,186.82,186.79,2.84]
[1755326103352,2.83,186.82,186.78,4.68540338]
[1755326103856,4.3602765,186.81,186.78,1.84540338]
[1755326104059,2.83,186.82,186.79,2.84]
[1755326104357,2.83,186.8,186.79,2.84]
[1755326104554,2.83,186.8,186.76,130.42]
[1755326104759,2.83,186.83,186.79,1.84540338]
[1755326105057,2.83,186.81,186.8,2.84]
[1755326105257,6.34488618,186.86,186.8,2.84]
[1755326105463,4.35844178,186.85,186.84,2.84]
[1755326105756,2.83,186.87,186.84,2.84]
[1755326105757,2.83,186.87,186.84,10.03300338]
[1755326105947,7.18772926,186.86,186.85,2.84]
[1755326106350,7.18772926,186.86,186.82,4.68540338]
[1755326106351,2.83,186.85,186.82,4.68540338]
[1755326106550,2.83,186.85,186.83,2.84]
[1755326107256,2.83,186.85,186.83,8.1881]
[1755326108255,2.83,186.85,186.84,2.84]
[1755326108556,2.83,186.84,186.83,2.84]
[1755326109255,7.18785783,186.84,186.83,2.84]
[1755326109753,2.83,186.84,186.83,2.84]
[1755326110852,2.83,186.88,186.83,2.84]
[1755326111052,7.18785833,186.87,186.83,2.84]
[1755326111256,7.18785833,186.86,186.83,2.84]
[1755326111456,2.83,186.89,186.84,2.84]
[1755326111650,2.83,186.87,186.84,2.84]
[1755326111854,2.83,186.85,186.83,5.348]
[1755326112058,2.83,186.84,186.83,5.348]
[1755326112561,2.83,186.84,186.83,8.188]
[1755326114457,2.83,186.84,186.83,2.84]
[1755326114653,2.83,186.84,186.77,2.84]
[1755326114961,2.83,186.84,186.8,5.3489]
[1755326115163,2.83,186.84,186.78,2.84]
[1755326115362,2.83,186.84,186.81,2.84]
[1755326115661,2.83,186.85,186.83,5.3479]
[1755326115860,2.83,186.85,186.84,2.84]
[1755326117263,7.1913176,186.85,186.84,2.84]
[1755326117566,7.1913176,186.85,186.83,2.84]
[1755326117567,2.83,186.84,186.83,2.84]
[1755326118367,2.83,186.85,186.84,2.84]
[1755326118663,7.19205655,186.85,186.84,2.84]
[1755326118858,2.83,186.85,186.84,2.84]
[1755326119361,7.19253092,186.85,186.84,2.84]
[1755326122562,4.36253092,186.85,186.84,5.3478]
[1755326122760,4.4994828,186.9,186.84,2.9]
[1755326122965,4.36473687,186.89,186.86,2.88552225]
[1755326123261,4.36473687,186.88,186.87,8.247]
[1755326123462,7.22473687,186.88,186.87,8.247]
[1755326123851,7.22473687,186.88,186.87,2.9]
[1755326124058,2.86,186.87,186.84,2.9]
[1755326124262,2.86,186.85,186.84,2.9]
[1755326124462,4.4994828,186.9,186.84,2.9]
[1755326124762,2.86,186.85,186.84,2.9]
[1755326125363,7.22793858,186.85,186.84,2.9]
[1755326125761,4.36793858,186.85,186.81,8.2486]
[1755326125965,2.86,186.83,186.81,2.9]
[1755326126265,2.86,186.86,186.81,2.9]
[1755326126563,2.86,186.84,186.82,2.9]
[1755326126763,4.36794086,186.83,186.82,2.9]
[1755326126964,7.22794086,186.83,186.82,2.9]
[1755326128161,4.36794086,186.83,186.82,8.2484]
[1755326128361,7.22794086,186.83,186.82,8.2484]
[1755326128758,4.36794086,186.83,186.82,8.2484]
[1755326129157,2.86,186.86,186.85,2.9]
[1755326129358,7.23068524,186.86,186.85,2.9]
[1755326129961,4.37068524,186.86,186.85,8.2475]
[1755326137171,2.86,186.88,186.87,5.347]
[1755326137370,7.2270652,186.88,186.87,8.247]
[1755326138673,2.86,186.87,186.81,2.9]
[1755326138966,2.86,186.85,186.81,2.9]
[1755326139174,2.86,186.85,186.82,5.3481]
[1755326139366,2.86,186.85,186.81,2.9]
[1755326139669,2.86,186.83,186.8,5.3488]
[1755326139966,2.86,186.82,186.8,8.2488]
[1755326140970,2.86,186.82,186.78,130.34]
[1755326141170,2.86,186.82,186.79,2.9]
[1755326141768,2.86,186.82,186.79,8.2493]
[1755326142874,2.86,186.8,186.79,5.3493]
[1755326143071,2.86,186.8,186.78,135.6895]
[1755326143370,2.86,186.8,186.78,130.34]
[1755326143575,2.86,186.8,186.75,359.42]
[1755326143576,2.86,186.8,186.74,2.9]
[1755326144468,2.86,186.8,186.76,5.3499]
[1755326144670,2.86,186.8,186.76,8.2499]
[1755326144873,2.86,186.8,186.76,5.3499]
[1755326145276,2.86,186.8,186.75,8.2503]
[1755326145582,4.35091588,186.79,186.75,8.2503]
[1755326145769,2.86,186.78,186.75,8.2503]
[1755326148676,2.86,186.78,186.76,3.14]
[1755326151273,2.86,186.78,186.73,130.34]
[1755326151478,2.88552225,186.89,186.7,3.14]
[1755326151479,2.9,186.76,186.7,3.14]
[1755326151681,2.9,186.74,186.7,3.14]
[1755326152379,2.9,186.74,186.71,3.14]
[1755326153075,2.9,186.74,186.71,5.3515]
[1755326153283,2.9,186.74,186.69,3.14]
[1755326153474,2.9,186.73,186.69,3.14]
[1755326153775,2.9,186.73,186.72,8.4913]
[1755326154775,2.9,186.8,186.72,3.14]
[1755326154975,2.9,186.78,186.72,3.14]
[1755326155374,2.9,186.78,186.73,3.14]
[1755326155574,7.38500505,186.82,186.73,3.14]
[1755326155575,2.9,186.76,186.73,3.14]
[1755326155777,2.9,186.76,186.72,5.3511]
[1755326155982,2.9,186.76,186.72,8.4911]
[1755326156175,2.9,186.76,186.72,5.3511]
[1755326156377,2.9,186.76,186.72,8.4911]
[1755326158177,2.9,186.76,186.69,3.14]
[1755326158777,2.9,186.76,186.7,5.3517]
[1755326158971,2.9,186.76,186.7,8.4917]
[1755326160283,2.9,186.76,186.72,3.14]
[1755326160480,2.9,186.76,186.71,5.3515]
[1755326160682,2.9,186.82,186.74,3.14]
[1755326160886,2.9,186.82,186.8,3.14]
[1755326161179,2.9,186.82,186.81,3.14]
[1755326161380,2.9,186.81,186.74,3.14]
[1755326161574,4.33696275,186.8,186.71,134.5]
[1755326161776,2.9,186.81,186.71,134.5]
[1755326161777,2.9,186.78,186.71,134.5]
[1755326161977,2.9,186.76,186.71,134.5]
[1755326162177,2.9,186.76,186.59,10.7098]
[1755326162178,2.9,186.76,186.68,3.14]
[1755326162377,2.9,186.74,186.68,3.14]
[1755326162779,2.9,186.72,186.64,3.14]
[1755326163082,2.9,186.7,186.64,3.14]
[1755326163278,2.9,186.7,186.61,131.48]
[1755326163279,4.33140963,186.69,186.61,131.48]
[1755326163486,2.9,186.68,186.62,8.4941]
[1755326163782,2.9,186.68,186.64,3.14]
[1755326163982,2.9,186.68,186.65,3.14]
[1755326164388,2.9,186.72,186.62,3.14]
[1755326164579,2.9,186.75,186.66,5.3528]
[1755326164778,4.32868662,186.74,186.67,3.14]
[1755326165081,2.9,186.72,186.64,2.88552225]
[1755326165486,2.9,186.72,186.69,5.3521]
[1755326166084,2.9,186.72,186.68,8.4924]
[1755326167173,2.9,186.72,186.62,3.14]
[1755326167375,7.20917543,186.71,186.62,3.14]
[1755326167572,2.9,186.69,186.62,3.14]
[1755326167780,2.9,186.69,186.62,8.4941]
[1755326168878,2.9,186.69,186.63,8.4938]
[1755326169082,2.9,186.69,186.65,3.14]
[1755326169887,2.9,186.69,186.63,8.4936]
[1755326170676,2.9,186.69,186.65,3.14]
[1755326171078,2.9,186.69,186.6,3.14]
[1755326171282,2.9,186.69,186.59,134.54552225]
[1755326171283,2.9,186.69,186.62,8.4939]
[1755326171984,2.9,186.69,186.63,3.14]
[1755326172186,2.9,186.67,186.64,3.14]
[1755326172381,2.9,186.66,186.65,3.14]
[1755326174384,2.9,186.66,186.64,3.14]
[1755326174584,2.9,186.7,186.63,8.4938]
[1755326174782,2.9,186.68,186.64,3.14]
[1755326174989,2.9,186.68,186.64,5.3534]
[1755326175284,2.9,186.74,186.66,3.14]
[1755326175489,2.9,186.74,186.73,5.351]
[1755326175689,2.9,186.73,186.72,3.14]
[1755326175890,2.9,186.73,186.69,3.14]
[1755326176380,2.9,186.73,186.67,3.14]
[1755326176584,2.9,186.73,186.69,3.14]
[1755326176785,4.4994828,186.8,186.72,5.3513]
[1755326176987,2.9,186.74,186.73,3.14]
[1755326177183,4.31575641,186.74,186.69,3.14]
[1755326177493,2.9,186.72,186.67,3.14]
[1755326177992,2.9,186.71,186.68,5.3521]
[1755326178195,2.9,186.71,186.67,3.14]
[1755326178790,2.9,186.71,186.69,5.352]
[1755326178990,2.9,186.71,186.69,8.462]
[1755326179383,2.9,186.71,186.7,3.11]
[1755326179785,3.09,186.7,186.69,3.11]
[1755326181286,3.09,186.69,186.68,3.11]
[1755326184784,3.09,186.69,186.68,8.4624]
[1755326185591,3.09,186.7,186.69,3.11]
[1755326185894,4.4994828,186.75,186.69,8.4621]
[1755326186096,3.09,186.71,186.7,3.11]
[1755326186286,7.41905703,186.71,186.7,3.11]
[1755326187192,7.41905703,186.71,186.7,8.4618]
[1755326188300,7.49641846,186.71,186.7,8.4618]
[1755326188499,7.49641846,186.71,186.7,3.11]
[1755326190002,4.40641846,186.71,186.69,5.352]
[1755326190195,7.49641846,186.7,186.69,8.462]
[1755326190395,4.40641846,186.7,186.66,131.58]
[1755326190595,7.49641846,186.69,186.67,3.11]
[1755326190792,7.49897822,186.68,186.66,131.58]
[1755326190992,4.40942373,186.67,186.64,3.11]
[1755326191191,3.09,186.65,186.62,134.71]
[1755326191691,4.40903835,186.64,186.62,134.71]
[1755326191890,3.09,186.63,186.62,134.71]
[1755326192693,7.49950561,186.63,186.62,131.6]
[1755326192902,7.49950561,186.63,186.62,134.71]
[1755326194007,3.09,186.63,186.62,134.71]
[1755326194314,3.09,186.63,186.62,131.6]
[1755326195703,3.09,186.63,186.62,134.71]
[1755326197010,3.09,186.63,186.62,131.6]
[1755326197209,7.50359143,186.63,186.62,131.6]
[1755326198504,4.41359143,186.63,186.62,134.71]
[1755326198700,4.48776367,186.68,186.62,136.9541]
[1755326199004,3.09,186.64,186.63,3.11]
[1755326199203,7.50333054,186.64,186.63,3.11]
[1755326199906,3.09,186.63,186.62,131.6]
[1755326200205,7.50333054,186.63,186.62,131.6]
[1755326201606,4.41333054,186.63,186.58,5.3551]
[1755326201811,3.09,186.61,186.59,131.52]
[1755326202212,3.09,186.65,186.59,131.52]
[1755326202407,3.09,186.63,186.59,134.63]
[1755326202712,3.09,186.6,186.59,134.63]
[1755326205212,3.09,186.6,186.59,131.52]
[1755326205406,3.09,186.6,186.57,3.11]
[1755326205908,3.09,186.6,186.58,3.11]
[1755326206109,3.09,186.59,186.58,3.11]
[1755326206315,3.09,186.62,186.56,131.5]
[1755326206610,3.09,186.6,186.59,3.11]
[1755326206814,7.50196055,186.6,186.59,3.11]
[1755326207112,3.09,186.62,186.59,3.11]
[1755326207510,3.09,186.64,186.61,5.3542]
[1755326207706,7.50270666,186.63,186.62,3.11]
[1755326208314,3.09,186.61,186.6,134.57]
[1755326208511,3.09,186.61,186.6,131.46]
[1755326208711,7.50071588,186.61,186.6,131.46]
[1755326209807,7.50071588,186.61,186.6,134.41]
[1755326210005,7.50071588,186.61,186.6,131.46]
[1755326210417,4.41071588,186.61,186.57,131.46]
[1755326210718,4.41078597,186.6,186.57,131.46]
[1755326210914,7.37328592,186.63,186.57,131.46]
[1755326210915,7.32078597,186.59,186.57,131.46]
[1755326211115,2.91,186.58,186.57,131.46]
[1755326211515,2.91,186.58,186.54,2.95]
[1755326211716,2.91,186.58,186.54,134.49]
[1755326212319,4.40749216,186.57,186.46,2.88552225]
[1755326212518,2.91,186.55,186.49,5.3577]
[1755326212718,2.91,186.55,186.48,2.95]
[1755326213319,2.91,186.55,186.5,8.3074]
[1755326214113,2.91,186.55,186.51,2.95]
[1755326214611,2.91,186.55,186.49,8.3079]
[1755326215014,2.91,186.55,186.49,2.95]
[1755326216221,2.91,186.55,186.47,131.58]
[1755326216222,4.3917277,186.54,186.45,2.95]
[1755326216419,2.88552225,186.57,186.43,2.88552225]
[1755326216420,2.91,186.52,186.47,2.95]
[1755326218020,2.88552225,186.54,186.41,2.95]
[1755326218021,2.91,186.5,186.41,2.95]
[1755326218220,2.91,186.5,186.43,2.95]
[1755326218814,2.91,186.49,186.46,2.95]
[1755326219025,2.91,186.48,186.47,2.95]
[1755326220422,2.91,186.53,186.47,2.95]
[1755326220628,2.91,186.53,186.52,2.95]
[1755326221825,2.91,186.52,186.51,2.95]
[1755326223226,2.91,186.54,186.51,2.95]
[1755326224027,2.91,186.54,186.52,5.357]
[1755326224332,2.91,186.54,186.53,2.95]
[1755326224627,2.91,186.54,186.53,8.3067]
[1755326225727,2.91,186.54,186.53,2.95]
[1755326225927,2.91,186.54,186.47,134.54552225]
[1755326225928,2.91,186.59,186.47,134.54552225]
[1755326226129,2.91,186.57,186.48,2.95]
[1755326226428,2.91,186.55,186.48,2.95]
[1755326226732,2.91,186.53,186.49,8.3078]
[1755326226923,4.37793751,186.52,186.49,8.3078]
[1755326227127,2.91,186.56,186.49,2.95]
[1755326227321,2.91,186.54,186.49,2.95]
[1755326227527,2.91,186.52,186.49,2.95]
[1755326228632,2.91,186.51,186.48,2.95]
[1755326229030,2.91,186.51,186.49,2.95]
[1755326229233,2.91,186.51,186.5,2.95]
[1755326230026,2.91,186.5,186.48,2.95]
[1755326230228,2.91,186.5,186.49,2.95]
[1755326230424,2.91,186.52,186.49,2.95]
[1755326230624,4.48776367,186.56,186.5,2.95]
[1755326230934,7.28849852,186.55,186.48,2.95]
[1755326231135,4.37849852,186.54,186.48,2.95]
[1755326231335,4.38056333,186.53,186.48,2.95]
[1755326231530,2.91,186.56,186.48,2.95]
[1755326231739,2.91,186.54,186.48,2.95]
[1755326231935,2.91,186.52,186.49,2.95]
[1755326232235,4.48776367,186.56,186.49,2.95]
[1755326232438,2.91,186.54,186.49,2.95]
[1755326232639,4.38269546,186.53,186.49,2.95]
[1755326232838,4.38269546,186.52,186.51,8.3071]
[1755326233636,2.91,186.56,186.52,8.307]
[1755326233841,2.91,186.54,186.53,2.95]
[1755326234138,7.29522428,186.54,186.53,2.95]
[1755326234338,2.91,186.53,186.52,2.95]
[1755326234539,7.29522428,186.53,186.52,2.95]
[1755326236639,7.29522428,186.53,186.47,131.66]
[1755326236640,7.29522428,186.53,186.5,8.3075]
[1755326236938,7.29522428,186.52,186.51,2.95]
[1755326239440,2.84,186.51,186.5,3.03]
[1755326239642,7.22522428,186.51,186.5,3.03]
[1755326239943,7.22522428,186.51,186.5,8.3876]
[1755326240840,4.38522428,186.51,186.47,131.66]
[1755326241043,2.84,186.51,186.5,3.03]
[1755326241237,7.23654993,186.51,186.5,3.03]
[1755326244042,2.84,186.5,186.48,3.03]
[1755326244245,4.39967671,186.49,186.48,3.03]
[1755326244439,7.23967671,186.49,186.48,3.03]
[1755326246448,2.84,186.48,186.47,134.69]
[1755326247748,2.84,186.53,186.48,3.03]
[1755326247950,2.84,186.51,186.48,3.03]
[1755326248148,4.48776367,186.55,186.48,5.358]
[1755326248456,4.48776367,186.55,186.49,3.03]
[1755326248457,2.84,186.5,186.49,3.03]
[1755326250647,2.84,186.54,186.47,140.0483]
[1755326250847,2.84,186.52,186.47,140.0483]
[1755326251045,2.84,186.5,186.48,3.03]
[1755326251841,4.48776367,186.55,186.47,137.0183]
[1755326252051,2.84,186.53,186.47,140.0483]
[1755326252248,4.406841,186.54,186.42,101.88552225]
[1755326252249,7.37328592,186.51,186.42,3.03]
[1755326252444,2.84,186.49,186.42,3.03]
[1755326252743,2.84,186.47,186.41,131.48]
[1755326252945,4.406841,186.46,186.43,3.03]
[1755326253151,4.406841,186.45,186.43,3.03]
[1755326253352,2.84,186.46,186.45,3.03]
[1755326253653,7.24706544,186.46,186.45,3.03]
[1755326254248,2.84,186.45,186.42,3.03]
[1755326255360,2.84,186.45,186.43,5.3596]
[1755326255655,2.84,186.45,186.44,3.03]
[1755326255856,7.24979176,186.45,186.44,3.03]
[1755326256450,7.24979176,186.45,186.44,8.3893]
[1755326256952,7.24979176,186.45,186.44,3.03]
[1755326257557,7.24979176,186.45,186.42,5.3596]
[1755326257754,7.24979176,186.44,186.43,3.03]
[1755326258752,2.84,186.44,186.43,3.03]
[1755326258953,2.84,186.44,186.43,8.3896]
[1755326260355,2.84,186.44,186.43,3.03]
[1755326261256,2.84,186.44,186.43,8.3896]
[1755326261856,2.84,186.48,186.45,3.03]
[1755326262159,2.84,186.46,186.45,3.03]
[1755326262352,4.40885509,186.46,186.41,131.48]
[1755326262553,7.24885509,186.45,186.44,3.03]
[1755326263959,2.84,186.44,186.42,3.03]
[1755326264160,2.84,186.44,186.41,131.48]
[1755326264352,2.84,186.44,186.41,134.51]
[1755326265956,2.84,186.42,186.41,134.51]
[1755326266158,2.84,186.47,186.42,3.03]
[1755326266356,4.40347995,186.46,186.42,3.03]
[1755326266558,2.88552225,186.48,186.42,3.03]
[1755326266559,2.84,186.44,186.42,3.03]
[1755326266750,2.84,186.44,186.43,3.03]
[1755326266954,7.24335284,186.44,186.43,3.03]
[1755326267452,7.24335284,186.44,186.43,8.3896]
[1755326267652,4.40335284,186.44,186.43,8.3896]
[1755326268060,2.84,186.46,186.44,5.3591]
[1755326268252,2.84,186.46,186.45,3.03]
[1755326268563,7.24287321,186.46,186.45,3.03]
[1755326269065,4.48776367,186.53,186.45,3.03]
[1755326269360,4.40428689,186.52,186.47,3.04]
[1755326269663,2.93,186.52,186.48,3.04]
[1755326269860,2.93,186.52,186.49,3.04]
[1755326270053,2.93,186.5,186.49,3.04]
[1755326270660,7.33520685,186.5,186.49,3.04]
[1755326271161,2.93,186.49,186.47,131.48]
[1755326271960,2.93,186.49,186.47,134.52]
[1755326272560,4.40469253,186.48,186.43,131.66]
[1755326272763,7.33455621,186.47,186.44,3.04]
[1755326272961,4.40436618,186.46,186.44,3.04]
[1755326273155,2.93,186.45,186.44,3.04]
[1755326273354,4.48776367,186.51,186.44,3.04]
[1755326273561,2.93,186.49,186.44,8.3991]
[1755326273756,4.40468114,186.48,186.44,5.3591]
[1755326273957,4.40468114,186.48,186.43,131.66]
[1755326273958,4.40468114,186.47,186.43,131.66]
[1755326274161,4.40468114,186.46,186.43,131.66]
[1755326274362,2.93,186.49,186.43,131.66]
[1755326274562,2.93,186.47,186.43,131.66]
[1755326274769,2.93,186.45,186.43,131.66]
[1755326275758,4.40301232,186.44,186.43,131.66]
[1755326275963,7.33301232,186.44,186.43,131.66]
[1755326276170,7.33301232,186.44,186.4,3.04]
[1755326276366,2.93,186.44,186.4,3.04]
[1755326277068,2.93,186.44,186.42,3.04]
[1755326277269,2.93,186.44,186.43,3.04]
[1755326277567,7.33207737,186.44,186.43,3.04]
[1755326278264,2.93,186.42,186.41,3.04]
[1755326280162,4.48776367,186.47,186.39,131.74]
[1755326280364,4.4034193,186.46,186.41,3.04]
[1755326280559,2.93,186.48,186.41,3.04]
[1755326280765,7.33352116,186.47,186.44,5.3591]
[1755326280966,2.93,186.46,186.45,3.04]
[1755326281160,2.93,186.46,186.4,2.88552225]
[1755326281161,2.93,186.46,186.4,3.04]
[1755326281358,2.93,186.44,186.41,3.04]
[1755326281559,4.40357567,186.43,186.41,3.04]
[1755326281759,4.48776367,186.48,186.41,3.04]
[1755326281964,2.93,186.45,186.41,3.04]
[1755326282172,4.40439691,186.44,186.39,131.74]
[1755326282374,2.93,186.42,186.34,3.04]
[1755326282565,2.88552225,186.46,186.35,3.04]
[1755326282566,2.93,186.4,186.35,3.04]
[1755326282967,2.93,186.38,186.35,3.04]
[1755326283170,4.40037953,186.37,186.3,3.04]
[1755326283367,2.93,186.35,186.3,3.04]
[1755326283873,2.93,186.37,186.3,3.04]
[1755326284067,4.40108381,186.36,186.3,3.04]
[1755326284263,2.93,186.37,186.3,3.04]
[1755326284767,2.93,186.36,186.35,3.04]
[1755326284976,2.93,186.41,186.35,3.04]
[1755326285167,2.93,186.39,186.33,3.04]
[1755326285368,2.93,186.37,186.3,3.04]
[1755326285569,2.93,186.35,186.3,3.04]
[1755326285772,2.93,186.35,186.31,5.363]
[1755326286069,2.93,186.35,186.28,134.74]
[1755326286266,2.93,186.35,186.29,3.04]
[1755326286668,2.93,186.35,186.28,134.74]
[1755326286669,2.93,186.35,186.24,0.93400252]
[1755326286872,2.93,186.35,186.23,3.04]
[1755326286873,2.93,186.33,186.23,3.04]
[1755326287075,2.93,186.33,186.12,363.76696981]
[1755326287076,4.3954354,186.32,186.19,135.26]
[1755326287264,2.93,186.3,186.22,3.04]
[1755326287973,2.93,186.3,186.23,3.04]